bitfinex/quotes_SOLUSD_20241103
["timestamp","ask_amount","ask_price","bid_price","bid_amount"]
[1730655404431,0.3090896,161.55,161.51,6.1915]
[1730655405623,0.3090896,161.55,161.51,30.27581952]
[1730655406120,0.3090896,161.55,161.51,21.6704]
[1730655406506,0.3090896,161.55,161.51,30.27581952]
[1730655407622,0.3090896,161.55,161.5,8.60541952]
[1730655408118,8.91450912,161.55,161.49,8.60541952]
[1730655409310,8.91450912,161.55,161.5,21.6717]
[1730655409711,8.91450912,161.55,161.5,30.27711952]
[1730655410922,8.91450912,161.55,161.5,24.08521952]
[1730655411629,0.3090896,161.55,161.5,24.08521952]
[1730655412014,8.60541952,161.54,161.5,15.4798]
[1730655412217,8.60541952,161.52,161.48,6.1927]
[1730655412521,8.60541952,161.51,161.48,6.1927]
[1730655412925,8.60541952,161.51,161.47,15.4826]
[1730655413330,8.60541952,161.52,161.47,15.4826]
[1730655414519,8.60541952,161.51,161.47,21.6757]
[1730655415617,8.60541952,161.5,161.47,21.6757]
[1730655415813,8.60541952,161.5,161.47,15.4826]
[1730655416425,8.60541952,161.5,161.46,6.1933]
[1730655416916,8.60541952,161.49,161.46,6.1933]
[1730655417438,8.60541952,161.48,161.42,8.60541952]
[1730655417646,0.1,161.51,161.39,46.074]
[1730655417647,8.60541952,161.45,161.41,21.6837]
[1730655418421,8.60541952,161.44,161.41,15.4883]
[1730655418626,8.60541952,161.43,161.4,6.1956]
[1730655418938,8.60541952,161.42,161.38,15.4911]
[1730655419121,8.60541952,161.42,161.38,21.6872]
[1730655419316,8.60541952,161.41,161.38,15.4911]
[1730655419529,8.60541952,161.4,161.38,15.4911]
[1730655420035,8.60541952,161.41,161.38,15.4911]
[1730655421439,13.45312977,161.4,161.38,15.4911]
[1730655421640,13.45312977,161.4,161.34,13.45312977]
[1730655421842,13.45312977,161.41,161.35,13.45312977]
[1730655422040,13.45312977,161.41,161.34,21.6932]
[1730655422041,13.45312977,161.44,161.38,13.45312977]
[1730655422245,24.127864,161.47,161.34,52.6836]
[1730655422246,13.45312977,161.43,161.37,13.45312977]
[1730655422630,13.45312977,161.42,161.36,13.45312977]
[1730655423038,13.45312977,161.42,161.37,21.6892]
[1730655423738,13.45312977,161.4,161.37,21.6892]
[1730655423939,13.45312977,161.39,161.37,21.6892]
[1730655425137,13.45312977,161.39,161.34,21.6932]
[1730655425332,13.45312977,161.41,161.35,13.45312977]
[1730655425539,13.45312977,161.43,161.37,13.45312977]
[1730655426543,13.45312977,161.43,161.38,21.6878]
[1730655426829,13.45312977,161.42,161.38,21.6878]
[1730655427650,13.45312977,161.42,161.38,15.4913]
[1730655428243,13.45312977,161.4,161.37,6.1969]
[1730655428557,13.45312977,161.41,161.37,6.1969]
[1730655429444,13.45312977,161.42,161.37,13.45312977]
[1730655429643,13.45312977,161.43,161.37,13.45312977]
[1730655429849,13.45312977,161.42,161.37,13.45312977]
[1730655430057,13.45312977,161.41,161.36,21.6906]
[1730655430951,6.1946,161.43,161.37,13.45312977]
[1730655430952,13.45312977,161.43,161.37,13.45312977]
[1730655432041,13.45312977,161.44,161.38,13.45312977]
[1730655432559,13.45312977,161.44,161.39,21.6865]
[1730655433445,13.45312977,161.43,161.39,21.6865]
[1730655434655,13.45312977,161.43,161.39,15.4904]
[1730655434863,13.45312977,161.44,161.39,15.4904]
[1730655435154,6.1939,161.45,161.39,15.4904]
[1730655435155,13.45312977,161.43,161.39,15.4904]
[1730655436768,13.45312977,161.43,161.37,13.45312977]
[1730655436954,13.45312977,161.45,161.39,13.45312977]
[1730655437275,13.45312977,161.47,161.4,13.45312977]
[1730655437555,13.45312977,161.47,161.41,13.45312977]
[1730655438759,13.45312977,161.5,161.44,13.45312977]
[1730655438946,13.45312977,161.51,161.45,35.13152977]
[1730655439539,13.45312977,161.51,161.46,13.45312977]
[1730655440375,13.45312977,161.5,161.45,21.6784]
[1730655440665,13.45312977,161.48,161.45,15.4846]
[1730655441361,13.45312977,161.46,161.43,6.1946]
[1730655441539,13.45312977,161.47,161.42,21.6822]
[1730655442250,13.45312977,161.48,161.42,35.13532977]
[1730655443447,13.45312977,161.47,161.42,21.6822]
[1730655445447,15.479,161.51,161.42,21.6822]
[1730655445448,13.45312977,161.45,161.42,21.6822]
[1730655446663,13.45312977,161.46,161.42,15.4872]
[1730655446854,13.45312977,161.47,161.42,15.4872]
[1730655447244,13.45312977,161.44,161.4,6.1957]
[1730655448450,13.45312977,161.44,161.4,15.4894]
[1730655450268,13.45312977,161.43,161.4,15.4894]
[1730655450461,13.45312977,161.42,161.4,15.4894]
[1730655450659,29.88842977,161.45,161.4,21.6851]
[1730655451965,13.45312977,161.44,161.4,21.6851]
[1730655452174,13.45312977,161.43,161.4,21.6851]
[1730655453356,8.60774428,161.43,161.4,15.4894]
[1730655454067,8.60774428,161.46,161.4,24.09714428]
[1730655455469,13.44499441,161.46,161.4,28.93439441]
[1730655456067,13.44499441,161.47,161.41,37.59834841]
[1730655456269,13.44499441,161.5,161.44,13.44499441]
[1730655457471,13.44499441,161.5,161.45,6.1938]
[1730655457860,13.44499441,161.49,161.45,6.1938]
[1730655459058,13.44499441,161.49,161.44,21.6791]
[1730655459668,13.44499441,161.48,161.44,21.6791]
[1730655460050,13.44499441,161.48,161.44,15.4849]
[1730655462174,13.44499441,161.49,161.44,28.92989441]
[1730655462572,13.44499441,161.49,161.44,35.12409441]
[1730655464375,13.44499441,161.49,161.44,15.4849]
[1730655465566,13.44499441,161.49,161.44,21.6791]
[1730655466063,13.44499441,161.46,161.41,15.4881]
[1730655466457,13.44499441,161.49,161.43,13.44499441]
[1730655467155,13.44499441,161.52,161.46,13.44499441]
[1730655467674,13.44499441,161.51,161.47,6.1931]
[1730655468469,6.1914,161.52,161.46,15.4836]
[1730655468470,13.44499441,161.5,161.46,15.4836]
[1730655468667,13.44499441,161.49,161.46,15.4836]
[1730655468875,13.44499441,161.5,161.46,15.4836]
[1730655469674,19.63699441,161.5,161.46,15.4836]
[1730655471783,13.44499441,161.49,161.43,35.12609441]
[1730655473079,13.44499441,161.48,161.43,35.12609441]
[1730655473253,13.44499441,161.45,161.4,50.86665878]
[1730655473459,13.44499441,161.46,161.41,21.77981234]
[1730655473658,13.44499441,161.46,161.41,19.64019441]
[1730655474568,13.44499441,161.46,161.41,35.12869441]
[1730655475380,13.44499441,161.46,161.42,2.13937825]
[1730655475565,13.44499441,161.46,161.42,8.33407825]
[1730655475956,13.44499441,161.46,161.42,6.1947]
[1730655476462,13.44499441,161.45,161.42,6.1947]
[1730655476665,13.44499441,161.46,161.42,6.1947]
[1730655477274,8.60406103,161.46,161.42,6.1947]
[1730655481175,8.60406103,161.45,161.42,6.1947]
[1730655481688,8.60406103,161.46,161.42,6.1947]
[1730655482083,8.60406103,161.46,161.41,15.4885]
[1730655482283,8.60406103,161.46,161.41,21.6839]
[1730655482985,8.60406103,161.44,161.41,15.4885]
[1730655483582,8.60406103,161.45,161.41,15.4885]
[1730655483766,8.60406103,161.43,161.4,6.1957]
[1730655484377,8.60406103,161.44,161.4,6.1957]
[1730655486379,14.79826103,161.44,161.4,6.1957]
[1730655486589,8.60406103,161.43,161.39,2.14078625]
[1730655487495,8.60406103,161.43,161.39,8.33688625]
[1730655488071,8.60406103,161.43,161.39,6.1961]
[1730655488275,8.60406103,161.42,161.39,6.1961]
[1730655488484,8.60406103,161.43,161.39,6.1961]
[1730655488680,1.07787875,161.49,161.42,8.60406103]
[1730655488978,8.60406103,161.52,161.46,8.60406103]
[1730655489906,8.60406103,161.52,161.45,8.60406103]
[1730655490271,8.60406103,161.51,161.46,21.6771]
[1730655490801,0.3090896,161.55,161.5,8.60406103]
[1730655491102,0.3090896,161.55,161.54,8.60406103]
[1730655492371,0.3090896,161.55,161.54,14.79446103]
[1730655492576,0.3090896,161.55,161.54,15.17093103]
[1730655492794,0.3090896,161.63,161.54,15.17093103]
[1730655492795,0.3090896,161.63,161.59,20.35098]
[1730655492975,0.3090896,161.63,161.62,32.63192503]
[1730655493176,0.3090896,161.63,161.62,52.85741503]
[1730655493380,0.3090896,161.63,161.62,44.253354]
[1730655493606,0.3090896,161.63,161.62,44.153354]
[1730655493823,0.3090896,161.63,161.62,57.55219546]
[1730655494302,0.3090896,161.71,161.65,0.1]
[1730655494602,0.3090896,161.71,161.7,57.65219546]
[1730655494805,13.86937637,161.84,161.78,13.39884146]
[1730655495093,13.39884146,161.83,161.77,13.39884146]
[1730655495881,13.39884146,161.83,161.76,13.39884146]
[1730655496076,13.39884146,161.8,161.74,13.39884146]
[1730655496277,1.38419474,161.87,161.78,13.39884146]
[1730655496278,13.39884146,161.83,161.78,13.39884146]
[1730655496478,13.70793106,161.87,161.78,13.64982146]
[1730655497285,13.39884146,161.85,161.78,13.39884146]
[1730655497596,6.4870896,161.87,161.74,20.0]
[1730655497597,13.39884146,161.84,161.77,13.39884146]
[1730655498098,13.39884146,161.85,161.78,37.55219546]
[1730655498507,13.39884146,161.85,161.78,43.73339546]
[1730655499298,13.39884146,161.84,161.78,19.58004146]
[1730655499491,13.39884146,161.83,161.77,28.85254146]
[1730655499882,13.39884146,161.83,161.77,35.03414146]
[1730655500294,13.39884146,161.81,161.75,13.39884146]
[1730655500506,13.39884146,161.8,161.74,13.39884146]
[1730655501185,0.1,161.85,161.73,28.85624146]
[1730655501186,13.70793106,161.79,161.73,28.85624146]
[1730655501424,13.70793106,161.79,161.73,15.4574]
[1730655501700,13.70793106,161.79,161.73,28.85624146]
[1730655502093,13.39884146,161.78,161.73,15.4574]
[1730655505212,13.39884146,161.77,161.73,15.4574]
[1730655506204,13.39884146,161.76,161.7,13.39884146]
[1730655506405,13.39884146,161.76,161.7,19.58274146]
[1730655506724,13.39884146,161.73,161.67,13.39884146]
[1730655507920,13.39884146,161.73,161.68,6.185]
[1730655508105,19.58164146,161.74,161.68,19.58384146]
[1730655508304,13.39884146,161.73,161.68,6.185]
[1730655508493,8.39884146,161.73,161.68,6.185]
[1730655508918,19.58164146,161.74,161.68,19.58384146]
[1730655509095,13.39884146,161.73,161.67,13.39884146]
[1730655509292,13.39884146,161.74,161.68,13.39884146]
[1730655509618,6.1812,161.78,161.66,15.4645]
[1730655509619,19.58004146,161.78,161.72,13.39884146]
[1730655509994,13.39884146,161.77,161.71,13.39884146]
[1730655510519,13.39884146,161.77,161.71,19.58244146]
[1730655510692,13.39884146,161.76,161.71,19.58244146]
[1730655511018,13.39884146,161.78,161.72,13.39884146]
[1730655512304,13.39884146,161.77,161.72,6.1832]
[1730655512699,6.4898896,161.79,161.76,13.39884146]
[1730655512700,0.3090896,161.79,161.76,13.39884146]
[1730655512901,0.3090896,161.79,161.78,13.39884146]
[1730655513108,0.3090896,161.79,161.78,13.52433146]
[1730655513610,0.3090896,161.79,161.78,0.12549]
[1730655513915,0.3090896,161.79,161.77,13.39884146]
[1730655514623,0.3090896,161.79,161.78,6.1812]
[1730655515112,0.3090896,161.79,161.78,19.58004146]
[1730655516822,0.3090896,161.79,161.78,6.1812]
[1730655516996,0.3090896,161.79,161.78,19.58004146]
[1730655518801,0.3090896,161.79,161.77,28.85244146]
[1730655519797,0.3090896,161.79,161.77,35.03404146]
[1730655520125,0.3090896,161.79,161.78,13.39884146]
[1730655520420,0.3090896,161.79,161.78,13.52433146]
[1730655521700,0.3090896,161.79,161.78,19.58004146]
[1730655521903,13.39884146,161.84,161.78,19.58004146]
[1730655522695,13.39884146,161.84,161.78,35.03304146]
[1730655523205,19.57734146,161.85,161.79,13.39884146]
[1730655523511,19.07734146,161.85,161.79,13.39884146]
[1730655523711,13.39884146,161.84,161.79,6.1806]
[1730655524921,19.57794146,161.84,161.79,6.1806]
[1730655525122,13.39884146,161.81,161.74,13.39884146]
[1730655525317,13.39884146,161.78,161.73,15.4572]
[1730655525830,13.39884146,161.79,161.73,28.85604146]
[1730655526012,13.39884146,161.8,161.74,13.39884146]
[1730655527112,13.39884146,161.8,161.75,21.6382]
[1730655527822,12.89884146,161.8,161.75,21.6382]
[1730655528829,13.39884146,161.78,161.72,13.39884146]
[1730655529127,13.39884146,161.77,161.71,35.04244146]
[1730655529316,13.39884146,161.8,161.74,13.39884146]
[1730655529518,13.39884146,161.8,161.72,0.1]
[1730655529519,13.39884146,161.84,161.78,13.39884146]
[1730655529830,6.1787,161.85,161.77,13.39884146]
[1730655529831,13.39884146,161.83,161.77,13.39884146]
[1730655530135,13.39884146,161.82,161.76,13.39884146]
[1730655530507,13.39884146,161.82,161.77,21.6356]
[1730655530707,19.57834146,161.83,161.77,21.6356]
[1730655531024,19.57834146,161.83,161.77,35.03444146]
[1730655531537,13.39884146,161.79,161.72,13.39884146]
[1730655531715,13.39884146,161.77,161.71,35.04244146]
[1730655532121,13.39884146,161.79,161.72,13.39884146]
[1730655532828,19.57984146,161.79,161.73,21.6409]
[1730655533409,13.39884146,161.78,161.73,21.6409]
[1730655533621,13.39884146,161.83,161.76,13.39884146]
[1730655533822,13.39884146,161.83,161.77,13.39884146]
[1730655534336,13.39884146,161.82,161.76,13.39884146]
[1730655534831,13.39884146,161.82,161.77,21.6356]
[1730655535412,15.8535896,161.87,161.77,21.6356]
[1730655535413,13.39884146,161.84,161.78,24.153354]
[1730655535611,0.3090896,161.87,161.82,13.39884146]
[1730655535813,0.3090896,161.87,161.83,13.39884146]
[1730655536022,0.3090896,161.87,161.84,13.39884146]
[1730655536638,0.3090896,161.87,161.82,13.39884146]
[1730655536816,0.3090896,161.87,161.83,6.1793]
[1730655537213,0.3090896,161.87,161.84,0.12549]
[1730655537412,0.3090896,161.87,161.84,13.52433146]
[1730655538216,0.3090896,161.87,161.86,13.39884146]
[1730655538638,0.3090896,161.87,161.85,13.39884146]
[1730655539337,0.3090896,161.87,161.86,52.72019546]
[1730655540219,0.3090896,161.87,161.86,28.94331146]
[1730655540531,0.3090896,161.87,161.85,35.02354146]
[1730655540939,0.3090896,161.87,161.84,13.39884146]
[1730655541109,0.3090896,161.87,161.83,13.39884146]
[1730655541719,0.3090896,161.87,161.86,13.39884146]
[1730655541920,0.3090896,161.87,161.86,13.52433146]
[1730655542122,0.3090896,161.87,161.85,13.39884146]
[1730655542333,0.3090896,161.87,161.85,0.12549]
[1730655542546,0.3090896,161.87,161.85,13.52433146]
[1730655542840,0.3090896,161.87,161.86,13.52433146]
[1730655543136,0.3090896,161.87,161.82,52.5271]
[1730655543137,0.3090896,161.87,161.83,13.39884146]
[1730655543317,0.3090896,161.87,161.82,35.02764146]
[1730655543514,0.3090896,161.87,161.84,13.39884146]
[1730655543816,0.3090896,161.87,161.86,13.39884146]
[1730655544422,0.3090896,161.87,161.86,13.52433146]
[1730655545218,0.3090896,161.87,161.86,19.70243146]
[1730655545534,0.3090896,161.87,161.85,15.446]
[1730655545744,0.3090896,161.87,161.83,13.39884146]
[1730655545943,19.88583106,161.87,161.82,15.4491]
[1730655546118,19.88583106,161.87,161.78,13.39884146]
[1730655546119,13.39884146,161.84,161.78,13.39884146]
[1730655546318,13.39884146,161.83,161.77,19.58034146]
[1730655546923,13.39884146,161.83,161.77,35.03434146]
[1730655547446,21.41388605,161.83,161.77,43.04938605]
[1730655547646,21.41388605,161.83,161.77,21.6355]
[1730655548440,27.59328605,161.83,161.77,21.6355]
[1730655548643,21.41388605,161.82,161.77,15.454]
[1730655548849,27.59328605,161.83,161.77,21.6356]
[1730655549026,27.59328605,161.83,161.77,43.04948605]
[1730655549521,21.41388605,161.82,161.76,21.41388605]
[1730655549719,21.41388605,161.81,161.75,27.84977202]
[1730655549951,21.41388605,161.82,161.75,49.48787202]
[1730655550434,27.59378605,161.82,161.76,21.41388605]
[1730655551029,21.41388605,161.81,161.75,28.07398597]
[1730655551219,21.41388605,161.8,161.75,28.07398597]
[1730655551736,21.41388605,161.79,161.75,6.43588597]
[1730655552124,21.41388605,161.79,161.74,6.1827]
[1730655552323,27.59538605,161.78,161.72,21.6422]
[1730655552642,21.41388605,161.76,161.72,21.6423]
[1730655553341,21.41388605,161.76,161.71,6.43244674]
[1730655553550,21.41388605,161.74,161.71,6.43244674]
[1730655553843,21.41388605,161.72,161.68,6.43279484]
[1730655554022,21.41388605,161.7,161.68,6.43279484]
[1730655554229,21.41388605,161.7,161.64,21.41388605]
[1730655554541,27.59828605,161.7,161.66,6.43206927]
[1730655554746,27.59828605,161.7,161.63,43.06778605]
[1730655554925,27.59828605,161.7,161.64,6.4316589]
[1730655555542,21.41388605,161.66,161.61,6.1876]
[1730655555846,21.41388605,161.67,161.61,6.1876]
[1730655556146,21.41388605,161.67,161.62,6.43058199]
[1730655556447,6.3339,161.72,161.66,21.41388605]
[1730655556653,6.3339,161.72,161.67,21.41388605]
[1730655557025,21.41388605,161.71,161.65,21.41388605]
[1730655557330,21.41388605,161.71,161.62,6.43011637]
[1730655557536,21.41388605,161.7,161.63,21.41388605]
[1730655558540,21.41388605,161.7,161.64,6.1865]
[1730655558942,27.59808605,161.7,161.64,27.60038605]
[1730655559234,21.41388605,161.69,161.64,6.1865]
[1730655559836,27.59808605,161.7,161.64,6.1865]
[1730655562340,6.1842,161.7,161.64,43.06678605]
[1730655562548,27.59808605,161.7,161.64,21.6529]
[1730655563130,27.59808605,161.7,161.64,43.06678605]
[1730655565231,27.59808605,161.7,161.64,15.4664]
[1730655565427,21.41388605,161.68,161.64,15.4664]
[1730655565658,21.41388605,161.67,161.62,6.43011637]
[1730655565954,21.41388605,161.68,161.62,12.61721637]
[1730655566529,21.41388605,161.67,161.62,6.43011637]
[1730655566735,6.1842,161.7,161.61,21.6567]
[1730655566736,21.41388605,161.65,161.61,21.6567]
[1730655566935,21.41388605,161.66,161.61,21.6567]
[1730655567159,21.41388605,161.67,161.61,43.07058605]
[1730655567445,27.59948605,161.67,161.61,43.07058605]
[1730655569234,27.59948605,161.67,161.61,21.6567]
[1730655569438,0.2,161.71,161.61,21.6567]
[1730655569439,13.41133344,161.66,161.61,21.6567]
[1730655570339,13.41133344,161.65,161.61,21.6567]
[1730655570536,13.41133344,161.64,161.61,21.6567]
[1730655571343,13.41133344,161.64,161.61,15.4691]
[1730655571851,13.41133344,161.63,161.59,6.4974896]
[1730655572461,13.41133344,161.66,161.6,13.41133344]
[1730655573463,13.41133344,161.66,161.59,52.9111896]
[1730655573464,19.59903344,161.61,161.59,0.3090896]
[1730655573630,13.41133344,161.6,161.59,0.3090896]
[1730655575758,19.59943344,161.6,161.59,0.3090896]
[1730655576338,13.41133344,161.6,161.59,0.3090896]
[1730655576759,19.59943344,161.6,161.59,0.3090896]
[1730655577443,27.66570888,161.6,161.59,0.3090896]
[1730655581358,21.47760888,161.6,161.59,0.3090896]
[1730655586761,27.66570888,161.6,161.59,0.3090896]
[1730655589148,21.47760888,161.6,161.59,0.3090896]
[1730655589755,21.47760888,161.62,161.59,6.4974896]
[1730655590045,21.47760888,161.68,161.62,0.12549]
[1730655590244,21.47760888,161.68,161.62,21.60309888]
[1730655591165,21.47760888,161.68,161.63,21.6543]
[1730655591847,21.47760888,161.7,161.64,21.60309888]
[1730655592343,21.47760888,161.66,161.63,15.4674]
[1730655592575,21.47760888,161.64,161.6,21.6578]
[1730655592749,21.47760888,161.65,161.6,21.6578]
[1730655593145,6.1857,161.67,161.6,21.6578]
[1730655593146,21.47760888,161.64,161.6,21.6578]
[1730655593441,21.47760888,161.65,161.6,21.6578]
[1730655593847,31.9891,161.72,161.6,21.6578]
[1730655593848,21.47760888,161.68,161.63,0.12549]
[1730655594771,21.47760888,161.67,161.62,0.12549]
[1730655595268,21.47760888,161.67,161.63,21.6543]
[1730655595456,21.47760888,161.68,161.63,21.6543]
[1730655596870,21.47760888,161.69,161.63,43.13190888]
[1730655599478,13.40661381,161.69,161.63,35.06091381]
[1730655600671,13.40661381,161.68,161.63,35.06091381]
[1730655601249,13.40661381,161.68,161.63,21.6543]
[1730655602354,13.40661381,161.67,161.63,21.6543]
[1730655602549,13.40661381,161.68,161.63,21.6543]
[1730655602754,13.40661381,161.69,161.63,35.06091381]
[1730655603373,13.40661381,161.7,161.64,13.53210381]
[1730655603674,13.40661381,161.71,161.66,21.6503]
[1730655604176,13.40661381,161.68,161.64,6.31169]
[1730655604377,13.40661381,161.7,161.64,35.18470381]
[1730655605983,13.40661381,161.7,161.66,0.12549]
[1730655606350,13.40661381,161.71,161.66,0.12549]
[1730655606571,13.40661381,161.7,161.66,0.12549]
[1730655607162,13.40661381,161.69,161.65,21.77719]
[1730655607351,13.40661381,161.68,161.65,21.6517]
[1730655608076,13.40661381,161.69,161.65,21.6517]
[1730655608656,13.40661381,161.71,161.65,28.87211381]
[1730655608997,13.40661381,161.77,161.7,13.40661381]
[1730655609276,13.40661381,161.77,161.71,0.12549]
[1730655609476,13.40661381,161.75,161.71,0.12549]
[1730655609978,13.40661381,161.76,161.71,0.12549]
[1730655610278,13.40661381,161.76,161.72,6.1835]
[1730655611673,13.40661381,161.76,161.72,21.6423]
[1730655613776,13.40661381,161.75,161.72,21.6423]
[1730655614378,13.40661381,161.76,161.72,21.6423]
[1730655614966,13.40661381,161.75,161.72,21.6423]
[1730655615172,13.40661381,161.73,161.69,15.4615]
[1730655615366,13.40661381,161.71,161.69,15.4615]
[1730655615567,13.40661381,161.72,161.69,15.4615]
[1730655616791,6.1823,161.76,161.69,15.4615]
[1730655616792,13.40661381,161.73,161.69,15.4615]
[1730655618886,13.40661381,161.73,161.64,31.0329]
[1730655618887,13.40661381,161.7,161.65,15.4646]
[1730655619071,13.40661381,161.67,161.65,21.6508]
[1730655619275,23.1648,161.73,161.65,21.6508]
[1730655619467,16.5014,161.73,161.65,35.05741381]
[1730655619666,16.5014,161.73,161.65,21.6508]
[1730655619869,13.40661381,161.71,161.65,35.05741381]
[1730655620071,13.40661381,161.77,161.7,29.49030381]
[1730655620372,13.40661381,161.78,161.72,13.40661381]
[1730655620880,6.2797,161.82,161.73,21.6409]
[1730655621276,6.1797,161.82,161.73,21.6409]
[1730655621589,13.40661381,161.76,161.73,21.6409]
[1730655622074,13.40661381,161.78,161.71,13.40661381]
[1730655622471,13.40661381,161.79,161.73,13.40661381]
[1730655623297,13.40661381,161.78,161.72,13.78308381]
[1730655623893,13.40661381,161.77,161.72,0.37647]
[1730655624293,13.40661381,161.77,161.73,21.6409]
[1730655625100,13.40661381,161.78,161.73,21.6409]
[1730655625391,13.40661381,161.79,161.73,35.04751381]
[1730655625696,13.40661381,161.78,161.73,21.6409]
[1730655626286,13.40661381,161.77,161.73,21.6409]
[1730655628016,13.40661381,161.76,161.73,21.6409]
[1730655628189,13.40661381,161.75,161.73,21.6409]
[1730655628789,13.40661381,161.77,161.73,21.6409]
[1730655629896,13.40661381,161.78,161.73,21.6409]
[1730655630285,13.40661381,161.77,161.73,21.6409]
[1730655633284,13.40661381,161.76,161.73,21.6409]
[1730655633486,13.40661381,161.83,161.78,0.1]
[1730655633690,13.40661381,161.86,161.8,24.153354]
[1730655633890,12.91458905,161.87,161.77,0.12549]
[1730655634085,13.40661381,161.8,161.76,0.12549]
[1730655635300,13.40661381,161.78,161.73,30.9157]
[1730655635545,13.40661381,161.78,161.75,6.1823]
[1730655635804,13.40661381,161.79,161.75,6.1823]
[1730655636198,12.85530427,161.79,161.75,6.1823]
[1730655636400,12.85530427,161.79,161.75,15.4559]
[1730655636598,12.85530427,161.78,161.75,15.4559]
[1730655639406,12.85530427,161.77,161.75,15.4559]
[1730655640120,12.85530427,161.85,161.78,44.253354]
[1730655640291,12.85530427,161.85,161.8,0.37647]
[1730655640495,12.85530427,161.84,161.8,0.37647]
[1730655640693,12.85530427,161.83,161.78,20.0]
[1730655640896,21.9962,161.86,161.77,15.7635]
[1730655641112,21.9962,161.86,161.78,0.12549]
[1730655641291,21.9962,161.86,161.75,15.4559]
[1730655641811,12.85530427,161.78,161.75,15.4559]
[1730655642597,12.85530427,161.84,161.75,15.4559]
[1730655642598,12.85530427,161.8,161.76,0.37647]
[1730655642811,12.85530427,161.8,161.77,21.6356]
[1730655643296,12.85530427,161.79,161.77,21.6356]
[1730655645208,12.85530427,161.78,161.74,20.25098]
[1730655645515,12.85530427,161.77,161.74,41.89028]
[1730655645899,12.85530427,161.77,161.74,41.6393]
[1730655646423,12.85530427,161.77,161.74,21.6393]
[1730655646999,12.85530427,161.76,161.74,21.6393]
[1730655647397,12.85530427,161.76,161.74,15.4569]
[1730655648617,12.85530427,161.75,161.74,15.4569]
[1730655648810,12.85530427,161.76,161.74,15.58239]
[1730655649219,12.85530427,161.75,161.72,6.43041712]
[1730655649521,12.85530427,161.73,161.65,6.1862]
[1730655649714,12.85530427,161.76,161.65,6.1862]
[1730655649715,12.85530427,161.72,161.69,6.42696805]
[1730655649924,22.2541,161.82,161.69,0.12549]
[1730655649925,12.85530427,161.73,161.69,0.12549]
[1730655650133,22.1541,161.82,161.72,0.12549]
[1730655650134,12.85530427,161.77,161.72,0.12549]
[1730655650318,22.1541,161.82,161.72,0.12549]
[1730655650500,12.85530427,161.78,161.72,12.98079427]
[1730655650834,12.85530427,161.78,161.73,21.6409]
[1730655651503,12.85530427,161.77,161.73,21.6409]
[1730655653009,12.85530427,161.76,161.73,21.6409]
[1730655654924,12.85530427,161.75,161.73,21.6409]
[1730655655130,12.85530427,161.74,161.73,21.6409]
[1730655655828,12.85530427,161.75,161.73,21.6409]
[1730655656025,12.85530427,161.75,161.71,0.12549]
[1730655656232,12.85530427,161.76,161.71,0.37647]
[1730655657125,12.85530427,161.76,161.72,21.6423]
[1730655657930,12.85530427,161.79,161.73,24.153354]
[1730655658100,12.85530427,161.79,161.73,37.00865827]
[1730655658302,12.85530427,161.78,161.73,24.153354]
[1730655659207,12.85530427,161.77,161.75,0.12549]
[1730655659415,12.85530427,161.77,161.74,21.6396]
[1730655661410,12.85530427,161.76,161.74,21.6396]
[1730655662238,12.85530427,161.77,161.74,21.6396]
[1730655663715,12.85530427,161.76,161.74,21.6396]
[1730655665811,12.85530427,161.76,161.74,15.4569]
[1730655666838,12.85530427,161.75,161.74,15.4569]
[1730655670728,12.85530427,161.75,161.72,21.6423]
[1730655672223,12.85530427,161.73,161.71,6.42718646]
[1730655672425,12.85530427,161.72,161.71,12.61108646]
[1730655672737,12.85530427,161.73,161.71,28.07078646]
[1730655673842,12.85530427,161.72,161.71,21.88688646]
[1730655674142,12.85530427,161.72,161.71,28.07078646]
[1730655674439,21.6315,161.8,161.71,28.07078646]
[1730655674440,12.85530427,161.73,161.71,28.07078646]
[1730655674639,12.85530427,161.72,161.71,28.07078646]
[1730655674940,42.23000854,161.72,161.61,30.9377]
[1730655675119,12.85530427,161.64,161.61,30.9377]
[1730655675321,8.24174316,161.64,161.62,6.42553865]
[1730655675629,8.24174316,161.64,161.63,6.1869]
[1730655677327,12.87796489,161.64,161.62,12.61273865]
[1730655677526,12.87796489,161.63,161.62,6.42553865]
[1730655677726,12.87796489,161.63,161.59,0.3090896]
[1730655677931,12.87796489,161.6,161.59,0.3090896]
[1730655678137,12.87796489,161.62,161.59,21.9686896]
[1730655678325,12.87796489,161.64,161.59,21.9686896]
[1730655678833,12.87796489,161.64,161.59,34.84665449]
[1730655679033,12.87796489,161.63,161.59,21.9686896]
[1730655679239,12.87796489,161.61,161.59,21.9686896]
[1730655679818,12.87796489,161.62,161.59,21.9686896]